[Event "Mitropa Cup Women 2022"]
[Site "Corte"]
[Date "2022.05.01"]
[Round "2.1"]
[White "Cvitan, Ena"]
[Black "Urh, Zala"]
[Result "1-0"]
[ECO "D94"]
[WhiteElo "2238"]
[BlackElo "2284"]
[Annotator "TA"]
[PlyCount "125"]
[EventDate "2022.04.30"]
[EventType "team-tourn"]
[EventCountry "FRA"]
[SourceTitle "playchess.com"]
[Source "ChessBase"]
[SourceQuality "1"]
[WhiteTeam "Croatia"]
[BlackTeam "Slovenia"]
[WhiteTeamCountry "CRO"]
[BlackTeamCountry "SLO"]
[TimeControl "40/5400+30:1800+30"]

{[%evp 15,125,19,17,0,35,41,37,31,37,0,68,56,52,63,66,55,55,51,104,95,113,122,137,123,112,93,114,0,106,106,112,0,90,97,93,95,95,99,343,329,445,443,743,750,764,797,893,706,697,675,752,725,1108,926,1214,777,993,700,516,0,0,0,0,0,0,0,0,0,0,0,0,0,0,0,0,0,0,0,0,0,0,0,0,0,439,428,433,329,756,643,707,727,2180,2090,12842,12843,12843,12843,12843,12844,12845,12845,12847,12848,27999,27999,27999,27999,27999,27999,27999,27999]} 1. d4 {[%emt 0:02:02]} Nf6 {[%emt 0:00:07]} 2. c4 {[%emt 0:00:11]} g6 {[%emt 0:00:04]} 3. Nc3 {[%emt 0:00:48]} d5 {[%emt 0:00:10]} 4. e3 {[%emt 0:04:12]} Bg7 {[%emt 0:01:25]} 5. Nf3 {[%emt 0:00:14]} O-O {[%emt 0:00:48]} 6. Be2 {[%emt 0:00:34]} dxc4 {[%emt 0:06:09]} 7. Bxc4 {[%emt 0:00:20]} Nbd7 {[%emt 0:00:23]} 8. O-O c5 9. h3 {[%emt 0:07:00] D94: Grünfeld: 4 Nf3 Bg7 5 e3.} b6 {[%emt 0:09:37]} 10. d5 {[%emt 0:05:17]} Ne8 {[%emt 0:09:13]} 11. e4 {[%emt 0:12:53] White is slightly better.} Nd6 {[%emt 0:02:38] [#]} 12. Be2 $146 {[%emt 0:03:56]} ({Predecessor:} 12. Qe2 f5 13. Bb3 fxe4 14. Nxe4 Ne5 15. Nxe5 Bxe5 16. Nxc5 bxc5 17. Qxe5 Rf5 18. Qe2 {½-½ (53) Zimmermann,M (1914)-Hopson,K (1761) Kiel 2012}) 12... Re8 {[%emt 0:18:32]} (12... Bb7 $11) 13. Qc2 $14 {[%emt 0:07:23]} a6 {[%emt 0:13:37]} 14. a4 {[%emt 0:05:07]} f5 {[%emt 0:06:37]} 15. Rd1 {[%emt 0:18:14]} fxe4 {[%emt 0:02:24]} 16. Nxe4 {[%emt 0:03:19]} Nf8 {[%emt 0:02:30]} ({Better is} 16... Nf6 $14 17. Neg5 Bf5) 17. Ng3 $16 {[%emt 0:00:47] White is more active.} Bb7 {[%emt 0:06:51]} 18. Bf4 {[%emt 0:04:14]} Rc8 {[%emt 0:01:28]} 19. h4 {[%emt 0:04:19]} c4 {[%emt 0:01:19]} 20. h5 {[%emt 0:02:07]} Rc5 {[%emt 0:00:25]} 21. Nh4 {[%emt 0:02:27]} (21. hxg6 $16 hxg6 22. Rac1) 21... Rxd5 {[%emt 0:03:29]} (21... Bf6 $1 $11 22. Nf3 Qc8) 22. hxg6 {[%emt 0:03:38]} e5 {[%emt 0:05:01]} 23. gxh7+ {[%emt 0:01:00]} (23. Be3 $16 {Rxd5 is the strong threat.} Qxh4 24. Rxd5 Bxd5 25. Qd2 Bxg2 26. Kxg2) 23... Kh8 {[%emt 0:04:02]} (23... Nxh7 $11 {remains equal.} 24. Qg6 exf4) 24. Be3 {[%emt 0:00:29] aiming for Rxd5.} Qxh4 {[%emt 0:00:49] [#]} 25. Rxd5 $1 {[%emt 0:01:00] The board is on fire.} Bxd5 {[%emt 0:00:01]} 26. Qd2 {[%emt 0:02:21]} Be6 {[%emt 0:03:58]} 27. Qxd6 $18 {[%emt 0:00:20]} Nxh7 {[%emt 0:00:31]} 28. Qxb6 {[%emt 0:05:52]} Ng5 {[%emt 0:01:20]} (28... Nf6 $142 29. Qxa6 Nd5) 29. Qc6 {[%emt 0:00:52]} Re7 {[%emt 0:00:37]} 30. Rd1 {[%emt 0:02:16]} Kh7 {[%emt 0:00:53]} 31. Bxg5 {[%emt 0:01:10]} Qxg5 {[%emt 0:00:01]} 32. Bxc4 {[%emt 0:00:35]} Qg4 {[%emt 0:00:47]} 33. Be2 {[%emt 0:00:40]} Qb4 {[%emt 0:00:24]} 34. Bxa6 {[%emt 0:01:02]} Bb3 {[%emt 0:00:25]} 35. Bd3+ {[%emt 0:00:27]} e4 {[%emt 0:00:23]} 36. Bxe4+ {[%emt 0:00:47]} Rxe4 {[%emt 0:00:09]} 37. Qxe4+ $2 {[%emt 0:00:32]} (37. Nxe4 $18 Bxd1 38. Ng5+ Kh8 39. Qe8+ Bf8 40. Qe5+ Bg7 41. Qh2+ (41. Qf5 Qe1+ 42. Kh2 Qe5+ 43. Qxe5 Bxe5+ 44. Kh3 Bxb2 $17) 41... Kg8 42. Qh7+ Kf8 43. Qf5+ Ke7 44. Qf7+ Kd6 45. Qxg7) 37... Qxe4 $11 {[%emt 0:00:07]} 38. Nxe4 {[%emt 0:00:02]} Bxd1 {[%emt 0:00:05]} 39. Nc3 {[%emt 0:00:29]} Bb3 {[%emt 0:00:24]} 40. f4 {[%emt 0:00:56]} Bd4+ {[%emt 0:00:50]} 41. Kf1 {[%emt 0:30:01]} Kg6 {[%emt 0:30:51]} 42. Ke2 {[%emt 0:00:31]} Kf5 {[%emt 0:00:00]} 43. Kf3 {[%emt 0:00:00]} Bb6 {[%emt 0:00:00]} 44. g4+ {[%emt 0:00:00]} Ke6 {[%emt 0:00:00]} 45. Ke2 {[%emt 0:00:00]} Bc7 {[%emt 0:00:00]} 46. Ke3 {[%emt 0:00:00]} Bb6+ {[%emt 0:00:00]} 47. Kd3 {[%emt 0:00:00]} Bd8 {[%emt 0:00:00]} 48. Ke4 {[%emt 0:00:00]} Bc2+ {[%emt 0:00:00]} 49. Kd4 {[%emt 0:00:00] [#] Strongly threatening b4.} Bb6+ $2 {[%emt 0:00:00][%mdl 8192]} (49... Bf6+ $11 50. Kc4 Bxc3 51. bxc3 Bxa4) 50. Kc4 $18 {[%emt 0:00:00]} Be3 {[%emt 0:00:00]} 51. f5+ {[%emt 0:00:00]} Kd6 $2 {[%emt 0:00:00]} (51... Ke5 52. a5 Bf2) 52. b4 {[%emt 0:00:00][%cal Bb2b4,Bb4b5,Bb5c6][%mdl 32]} Bg5 {[%emt 0:00:00]} 53. a5 {[%emt 0:00:00][%cal Ba4a5,Ba5a6][%mdl 32] Hoping for a6.} Bd8 {[%emt 0:00:00]} 54. a6 {[%emt 0:00:00] Black must now prevent a7.} Kc6 {[%emt 0:00:00]} 55. b5+ {[%emt 0:00:00]} Kb6 {[%emt 0:00:00]} 56. Nd5+ {[%emt 0:00:00]} Ka7 {[%emt 0:00:00]} 57. Nb4 {[%emt 0:00:00]} Be4 {[%emt 0:00:00]} 58. Nc6+ {[%emt 0:00:00]} Bxc6 {[%emt 0:00:00]} 59. bxc6 {[%emt 0:00:00]} Kxa6 {[%emt 0:00:00]} 60. Kd5 {[%emt 0:00:00] White mates.} Kb6 {[%emt 0:00:00]} 61. Kd6 {[%emt 0:00:00]} Bc7+ {[%emt 0:00:00]} 62. Kd7 {[%emt 0:00:00]} Be5 {[%emt 0:00:06]} 63. f6 {[%emt 0:00:00] Weighted Error Value: White=0.32/Black=0.61} 1-0

[Event "Mitropa Cup Women 2022"]
[Site "Corte"]
[Date "2022.05.01"]
[Round "2.2"]
[White "Janzelj, Lara"]
[Black "Medic, Mirjana"]
[Result "0-1"]
[ECO "A13"]
[WhiteElo "2191"]
[BlackElo "2172"]
[Annotator "TA"]
[PlyCount "68"]
[EventDate "2022.04.30"]
[EventType "team-tourn"]
[EventCountry "FRA"]
[SourceTitle "playchess.com"]
[Source "ChessBase"]
[SourceQuality "1"]
[WhiteTeam "Slovenia"]
[BlackTeam "Croatia"]
[WhiteTeamCountry "SLO"]
[BlackTeamCountry "CRO"]
[TimeControl "40/5400+30:1800+30"]

{[%evp 18,68,62,51,77,6,88,93,103,110,125,123,114,126,117,77,136,123,132,92,100,0,120,28,89,41,42,-43,-53,-45,-44,-74,-78,-73,-72,-74,-77,-77,-65,-123,-81,-82,-46,-182,-41,-40,-35,-787,-772,-29995,-29996,-29996,-29997]} 1. c4 {[%emt 0:00:03]} e6 {[%emt 0:00:09]} 2. g3 {[%emt 0:00:05]} d5 {[%emt 0:00:17]} 3. Bg2 {[%emt 0:00:13]} Nf6 {[%emt 0:00:08]} 4. Nf3 {[%emt 0:00:05]} c6 {[%emt 0:01:04]} 5. O-O {[%emt 0:01:29]} Be7 {[%emt 0:00:07]} 6. d4 {[%emt 0:00:27]} O-O {[%emt 0:00:50]} 7. Nc3 {[%emt 0:00:25]} b6 {[%emt 0:01:20]} 8. Ne5 {[%emt 0:00:44]} Bb7 {[%emt 0:01:21]} 9. e4 {[%emt 0:01:31][%cal Be2e4,Be4e5][%mdl 32]} dxc4 {[%emt 0:06:39]} 10. Nxc4 {[%emt 0:00:36]} Nbd7 {[%emt 0:07:00] E06: Closed Catalan: Early deviations.} 11. Bf4 {[%emt 0:05:16]} (11. e5 $16 Nd5 12. Qg4) 11... Re8 {[%emt 0:08:07]} (11... Ba6 $11 12. b3 b5) 12. Nd6 $16 {[%emt 0:09:19]} Bxd6 {[%emt 0:00:06] White is better.} 13. Bxd6 {[%emt 0:00:04] [#]} Nf8 $146 {[%emt 0:09:37]} ({Predecessor:} 13... e5 14. dxe5 Nxe5 15. Bxe5 Rxe5 16. f4 Re7 17. e5 Rd7 18. Qb3 Ng4 19. e6 Rd2 20. exf7+ Kf8 21. Rad1 Qd4+ 22. Kh1 Nf2+ 23. Rxf2 Qxf2 {0-1 (23) Antic,D (2466)-Ibryamov,I (2116) Plovdiv 2014}) 14. e5 {[%emt 0:10:48]} Nd5 {[%emt 0:01:30]} 15. Ne4 {[%emt 0:00:13]} Ng6 {[%emt 0:07:18]} 16. Qh5 {[%emt 0:02:51]} Nde7 {[%emt 0:06:47]} (16... f5 $142) 17. Rfd1 {[%emt 0:19:41]} Nf5 {[%emt 0:04:36]} 18. Ba3 {[%emt 0:02:46]} h6 {[%emt 0:03:57]} 19. Bh3 {[%emt 0:04:51]} (19. Bd6 $16) 19... Qd7 {[%emt 0:04:13]} (19... Qd5 $1 $11 20. Bg2 (20. Bxf5 exf5 21. Nc3 Qc4 $11) 20... Qb5) 20. b3 {[%emt 0:07:41]} (20. Bxf5 $16 exf5 21. Nd6) 20... Red8 {[%emt 0:01:51]} (20... Nxd4 $11 21. Bg2 (21. Nd6 c5 $11) 21... Red8) 21. Bb2 {[%emt 0:05:24]} (21. Bxf5 $16 {[%cal Oe4f6] Strongly threatening Nf6+!} exf5 22. Nd6) 21... a5 $14 {[%emt 0:02:22]} 22. a3 {[%emt 0:00:44]} ({White should try} 22. Bxf5 $14 exf5 23. Nd6) 22... Qd5 $1 $15 {[%emt 0:08:08][%csl LRb3,LRe4]} 23. Qe2 {[%emt 0:02:04]} Qxb3 {[%emt 0:02:23] Hoping for ...Ba6.} 24. Bxf5 {[%emt 0:01:03]} exf5 {[%emt 0:00:03]} 25. Nd6 {[%emt 0:00:05]} Ba6 {[%emt 0:00:43]} 26. Qd2 {[%emt 0:00:04]} f4 {[%emt 0:01:12]} 27. Rac1 {[%emt 0:01:05]} Qf3 {[%emt 0:01:42]} 28. Rc3 {[%emt 0:00:48]} (28. Re1 $15) 28... Qd5 {[%emt 0:03:46]} 29. Qc2 {[%emt 0:01:08]} f3 {[%emt 0:01:31]} 30. Rxc6 {[%emt 0:04:12] [#]} ({White should play} 30. Qb3 $15) 30... Be2 {[%emt 0:00:10]} ({Better is} 30... Nxe5 $1 $19 {[%mdl 512]} 31. dxe5 Qe6) 31. Rc1 {[%emt 0:00:18] Threatens to win with Nf5.} ({Don't go for} 31. Rxb6 $2 Bxd1 32. Qxd1 Nxe5 $1 $19 {[%mdl 512]}) 31... Ne7 $40 {[%emt 0:00:28][%mdl 128] And now ...Qe6 would win. White needs to defend precisely.} 32. Rc7 $2 {[%emt 0:02:11][%mdl 8192]} ({Not} 32. Rxb6 $2 Qe6 33. Nf5 Qxf5 $19) (32. Rc3 $15) 32... Qe6 $19 {[%emt 0:00:52][%cal Oe6h3] ( -> ...Qh3!)} 33. Kh1 {[%emt 0:00:43] [#]} Qh3 $1 {[%emt 0:01:30][%csl Gf3][%cal Rh3g2]} 34. Rg1 {[%emt 0:00:05] [#]} Bf1 $1 {[%emt 0:00:10] Weighted Error Value: White=0.83/Black=0.28 (precise)} 0-1

[Event "Mitropa Cup Women 2022"]
[Site "Corte"]
[Date "2022.05.01"]
[Round "2.4"]
[White "Rozman, Monika"]
[Black "Vujnovic, Patricija"]
[Result "0-1"]
[ECO "B17"]
[WhiteElo "2115"]
[BlackElo "2123"]
[Annotator "TA"]
[PlyCount "134"]
[EventDate "2022.04.30"]
[EventType "team-tourn"]
[EventCountry "FRA"]
[SourceTitle "playchess.com"]
[Source "ChessBase"]
[SourceQuality "1"]
[WhiteTeam "Slovenia"]
[BlackTeam "Croatia"]
[WhiteTeamCountry "SLO"]
[BlackTeamCountry "CRO"]
[TimeControl "40/5400+30:1800+30"]

{[%evp 9,133,29,25,18,40,25,30,30,34,6,7,0,-5,-5,0,0,0,0,0,0,0,12,0,0,0,8,0,0,13,-22,-11,-16,14,0,27,0,20,1,0,-28,0,0,0,0,9,2,35,0,84,43,99,100,97,102,122,122,122,122,123,117,125,100,68,0,0,0,0,-66,-73,-67,-56,-162,-138,-239,-245,-239,-247,-266,-241,-289,-258,-277,-246,-246,-239,-225,-217,-339,-334,-606,-565,-872,-784,-1003,-1033,-1190,-1281,-1958,-1771,-29988,-29989,-29990,-29991,-29992,-29984,-29984,-29985,-29985,-29985,-29985,-29986,-29986,-29986,-29986,-29987,-29987,-29988,-29990,-29991,-29995,-29996,-29996,-29997,-29997,-29998,-29999]} 1. e4 {[%emt 0:00:03]} c6 {[%emt 0:00:04]} 2. d4 {[%emt 0:00:03]} d5 {[%emt 0:00:03]} 3. Nc3 {[%emt 0:00:04]} dxe4 {[%emt 0:00:09]} 4. Nxe4 {[%emt 0:00:04]} Nd7 {[%emt 0:00:09]} 5. c3 {[%emt 0:06:40]} Ngf6 {[%emt 0:00:23]} 6. Nxf6+ {[%emt 0:00:15] B17: Caro-Kann: Modern Line (4...Nd7).} Nxf6 {[%emt 0:00:06]} 7. Bd3 {[%emt 0:00:11]} Bg4 {[%emt 0:01:57]} 8. Ne2 {[%emt 0:02:27] White has an edge.} e6 {[%emt 0:06:21]} 9. f3 {[%emt 0:09:35]} Bh5 {[%emt 0:00:07]} 10. Qc2 {[%emt 0:02:19]} Bg6 {[%emt 0:02:51] [#]} 11. Bd2 $146 {[%emt 0:02:53]} ({Predecessor:} 11. Bg5 Bxd3 12. Qxd3 Be7 13. O-O-O Qa5 14. Bxf6 Bxf6 15. Kb1 O-O-O 16. Ng3 {½-½ (63) Martinez Gomez,C (1600)-Leal Cortes,D (1884) Bogota 2018}) 11... Bd6 {[%emt 0:03:01]} 12. O-O-O {[%emt 0:02:27]} Bxd3 {[%emt 0:06:03]} 13. Qxd3 {[%emt 0:00:09]} O-O {[%emt 0:02:16]} 14. g4 {[%emt 0:01:47]} b5 {[%emt 0:02:37]} 15. Bg5 {[%emt 0:11:45]} Be7 {[%emt 0:05:16]} 16. h4 {[%emt 0:00:48]} Nd5 {[%emt 0:00:23][%cal Bf6d5,Bd5b6,Bb6c4][%mdl 32]} 17. Kb1 {[%emt 0:01:16]} a5 {[%emt 0:05:15]} 18. Ng3 {[%emt 0:03:16][%cal Be2g3,Bg3e4,Be4f2,Bf2d3,Bd3c5][%mdl 32]} a4 {[%emt 0:12:05]} 19. Ne4 {[%emt 0:00:18]} f6 {[%emt 0:04:35]} 20. Bd2 {[%emt 0:06:22]} Nb6 {[%emt 0:00:19]} 21. Qe2 {[%emt 0:04:37]} Re8 {[%emt 0:09:00]} 22. Nf2 {[%emt 0:01:52]} Qd5 {[%emt 0:02:32]} 23. Nd3 {[%emt 0:04:56]} Bd6 {[%emt 0:01:14]} 24. Bf4 {[%emt 0:02:16]} Nc4 {[%emt 0:04:50]} 25. Bxd6 {[%emt 0:11:18]} Qxd6 {[%emt 0:00:15]} 26. h5 {[%emt 0:00:09]} Qc7 {[%emt 0:06:13]} 27. h6 {[%emt 0:03:41]} g6 {[%emt 0:00:39]} 28. Nc5 {[%emt 0:01:34]} Qe7 {[%emt 0:10:06]} (28... Qf4 $11 {keeps the balance.}) 29. Rhe1 {[%emt 0:04:24]} Kf7 {[%emt 0:00:56]} (29... Qd6 $14) 30. Qf2 {[%emt 0:02:40]} Qd6 {[%emt 0:04:04]} 31. f4 {[%emt 0:00:46]} Qd5 {[%emt 0:01:05]} 32. Re2 {[%emt 0:00:50]} Ra7 {[%emt 0:00:42]} 33. Rde1 {[%emt 0:01:20] Hoping for f5.} Rae7 {[%emt 0:00:42]} 34. Nd3 {[%emt 0:01:02]} Kg8 {[%emt 0:06:22]} 35. f5 {[%emt 0:02:22]} g5 {[%emt 0:00:04]} 36. fxe6 {[%emt 0:09:18]} ({White should try} 36. b3 $14 axb3 37. axb3) 36... Rxe6 $11 {[%emt 0:00:35]} 37. Rxe6 {[%emt 0:00:29]} Rxe6 {[%emt 0:00:01]} 38. Kc2 {[%emt 0:02:32]} (38. Rxe6 $11 Qxe6 39. Qg3) 38... Rxe1 $15 {[%emt 0:02:36] Black is more active.} 39. Qxe1 {[%emt 0:00:11][%cal Re1e8]} Qg2+ {[%emt 0:01:38]} 40. Kc1 {[%emt 0:00:26] White is on the road to losing.} ({White should play} 40. Nf2 $1 $15 Kf8 41. Qe2) 40... Kf7 $1 $19 {[%emt 0:00:45]} 41. Nf2 {[%emt 0:06:15]} (41. b3 $17 Nb6 42. Nf2) 41... Qf3 {[%emt 0:07:54]} 42. b3 {[%emt 0:19:11]} axb3 {[%emt 0:05:16] Dancing on a razor blade.} 43. axb3 {[%emt 0:00:02]} Ne3 {[%emt 0:01:00]} 44. Qd2 {[%emt 0:00:40][%cal Od2d3]} Nxg4 {[%emt 0:01:27]} 45. Nxg4 {[%emt 0:00:30]} Qxg4 {[%emt 0:00:02][%mdl 4096] Endgame KQ-KQ} 46. d5 {[%emt 0:00:49]} cxd5 {[%emt 0:04:29]} 47. Qxd5+ {[%emt 0:00:08]} Kg6 {[%emt 0:00:55] aiming for ...Qf5.} 48. Qg8+ {[%emt 0:01:31]} (48. Qxb5 $142 Kxh6 49. Qe8) 48... Kxh6 {[%emt 0:00:19]} 49. Qf8+ $2 {[%emt 0:00:02] [#]} (49. c4 Qf4+ 50. Kc2 Qf5+ 51. Kb2 Qe5+ 52. Kc2) 49... Kh5 $1 {[%emt 0:02:01]} 50. Qf7+ {[%emt 0:01:20] [#]} Kh4 $1 51. Qxh7+ Kg3 {[%emt 0:00:29]} 52. Kb2 {[%emt 0:01:19]} f5 {[%emt 0:01:49]} 53. c4 bxc4 {[%emt 0:07:29]} 54. b4 {[%emt 0:00:51]} Qd4+ {[%emt 0:00:50] Black mates.} 55. Kc2 {[%emt 0:00:28]} Qd3+ {[%emt 0:00:22]} 56. Kb2 {[%emt 0:01:21]} c3+ {[%emt 0:00:14]} 57. Kb3 {[%emt 0:00:09]} c2+ {[%emt 0:00:14]} 58. Kb2 {[%emt 0:00:01]} Qd1 {[%emt 0:04:43]} 59. Qc7+ {[%emt 0:00:16]} f4 {[%emt 0:00:04][%cal Bf5f4,Bf4f3][%mdl 32]} 60. Qc3+ {[%emt 0:00:42]} f3 {[%emt 0:00:58]} 61. Qe5+ {[%emt 0:00:10]} Kh3 {[%emt 0:00:49]} 62. Qf5+ {[%emt 0:02:58]} g4 {[%emt 0:00:22]} 63. Qh5+ {[%emt 0:01:07]} Kg3 {[%emt 0:00:06]} 64. Ka2 {[%emt 0:00:05]} Qb1+ {[%emt 0:00:15]} 65. Ka3 {[%emt 0:00:01]} c1=Q+ {[%emt 0:00:09]} 66. Ka4 {[%emt 0:00:03]} Qc6+ {[%emt 0:00:38]} 67. b5 {[%emt 0:00:02]} Qa8# {[%emt 0:00:25] Weighted Error Value: White=0.59/Black=0.08 (flawless)} 0-1

[Event "Mitropa Cup Women 2022"]
[Site "Corte"]
[Date "2022.05.01"]
[Round "2.5"]
[White "Borosova, Zuzana"]
[Black "Zimina, Olga"]
[Result "1-0"]
[ECO "B12"]
[WhiteElo "2265"]
[BlackElo "2345"]
[Annotator "TA"]
[PlyCount "85"]
[EventDate "2022.04.30"]
[EventType "team-tourn"]
[EventCountry "FRA"]
[SourceTitle "playchess.com"]
[Source "ChessBase"]
[SourceQuality "1"]
[WhiteTeam "Slovakia"]
[BlackTeam "Italy"]
[WhiteTeamCountry "SVK"]
[BlackTeamCountry "ITA"]
[TimeControl "40/5400+30:1800+30"]

{[%evp 9,85,14,12,10,14,22,44,35,80,82,77,74,92,39,112,99,114,43,64,29,104,89,73,72,137,140,129,145,138,96,96,107,120,122,126,115,124,120,113,100,147,134,138,51,61,57,39,35,35,41,39,31,358,360,389,379,316,313,1554,529,531,509,774,768,746,665,29984,1727,1752,1684,1596,1595,1533,1412,29991,29991,29991,29992]} 1. e4 {[%emt 0:00:06]} c6 {[%emt 0:00:04]} 2. d4 {[%emt 0:00:09]} d5 {[%emt 0:00:05]} 3. e5 {[%emt 0:00:17]} c5 {[%emt 0:00:04]} 4. dxc5 {[%emt 0:00:20]} e6 {[%emt 0:00:06]} 5. a3 {[%emt 0:00:06]} Bxc5 {[%emt 0:00:06]} 6. Nf3 {[%emt 0:00:44] B12: Caro-Kann: Advance Variation.} Nd7 {[%emt 0:00:07]} 7. Bd3 $1 {[%emt 0:07:40]} Qc7 {[%emt 0:03:03]} 8. Qe2 {[%emt 0:01:49] White is slightly better.} Ne7 {[%emt 0:00:46]} 9. b4 $1 {[%emt 0:13:36]} Bb6 {[%emt 0:00:28]} 10. Bb2 {[%emt 0:04:36] [#]} Ng6 $146 {[%emt 0:01:35]} ({Predecessor:} 10... a5 11. Nbd2 axb4 12. axb4 Rxa1+ 13. Bxa1 Nc6 14. b5 Nb4 15. O-O Nxd3 16. cxd3 O-O {1-0 (45) Vrencian,L (2270)-Harika,D (2511) Chess.com INT 2021}) 11. O-O {[%emt 0:05:18]} (11. g3 $1 $16) 11... Qb8 {[%emt 0:19:51]} ({Black should try} 11... Nf4 $14 12. Qd2 Nxd3 13. Qxd3 Nf8) 12. Bxg6 $16 {[%emt 0:32:54]} hxg6 {[%emt 0:00:31]} 13. Nbd2 {[%emt 0:00:12]} (13. c4 $1 $16) 13... Bc7 {[%emt 0:02:00]} 14. Rfe1 {[%emt 0:01:24]} Nb6 {[%emt 0:03:07]} (14... b5 $11 {keeps the balance.}) 15. a4 $1 {[%emt 0:04:42][%cal Ba3a4,Ba4a5][%mdl 32]} Bd7 {[%emt 0:01:02]} 16. a5 {[%emt 0:06:36]} Nc8 {[%emt 0:04:58]} (16... Na4 $142 17. Bd4 b5) 17. b5 {[%emt 0:07:44]} Ne7 {[%emt 0:01:19]} 18. c4 {[%emt 0:04:10]} Qd8 {[%emt 0:01:52]} 19. Nb3 {[%emt 0:01:22]} dxc4 {[%emt 0:01:45]} 20. Qxc4 {[%emt 0:00:35]} Rc8 {[%emt 0:00:06][%cal Oc7a5]} 21. Qd3 {[%emt 0:01:57]} a6 {[%emt 0:04:33]} 22. b6 {[%emt 0:01:47]} Bb8 {[%emt 0:00:06]} 23. Ba3 {[%emt 0:01:43]} Bc6 {[%emt 0:04:44] [#]} 24. Qe2 {[%emt 0:01:37] And now Rad1 would win. 0x0.001b95dd5a39dp-1022s more active pieces.} Nf5 {[%emt 0:20:37]} (24... Kf8 $142) 25. Rad1 {[%emt 0:00:36]} Bd5 {[%emt 0:00:01] [#] Threatens to win with ...Rc3.} 26. Nc5 {[%emt 0:00:17]} ({Better is} 26. Rd3 $1 $16) 26... Nh4 $14 {[%emt 0:00:33] [#]} ({Less strong is} 26... Qe7 27. Qd3 $16) 27. Nxb7 $1 {[%emt 0:01:04]} Nxf3+ {[%emt 0:00:17] [#]} 28. Qxf3 $1 {[%emt 0:00:18] Dancing on a razor blade.} Bxf3 {[%emt 0:09:02]} 29. Rxd8+ {[%emt 0:00:03]} (29. Nxd8 $2 {perishes.} Bxd1 30. Nxe6 fxe6 $19) 29... Rxd8 {[%emt 0:00:05]} 30. gxf3 {[%emt 0:00:12]} ({Worse is} 30. Nxd8 Bd5 31. Nxf7 Kxf7 $17) 30... Rd3 {[%emt 0:13:29][%mdl 8192] Loses the game.} (30... Rd5 $1 $14 31. Rc1 Kd7) 31. Bd6 $18 {[%emt 0:01:09]} Bxd6 {[%emt 0:00:08]} 32. Nxd6+ {[%emt 0:00:12][%mdl 4096] Endgame KRR-KRN} Ke7 {[%emt 0:03:02]} 33. Rc1 {[%emt 0:00:36] Prevents Rc3.} Rd8 $2 {[%emt 0:00:57]} (33... Rxd6 34. exd6+ Kxd6) 34. Rc7+ {[%emt 0:00:09]} (34. b7 $142 {Black must now prevent Rc7+.} Rb3 35. Nc8+ Ke8 36. Nb6 Rxf3 37. Rc8) 34... Rd7 {[%emt 0:00:04]} 35. Ra7 {[%emt 0:00:51]} Rd5 {[%emt 0:01:23]} (35... Rb3 $142 36. Rxa6 f6) 36. Rxa6 {[%emt 0:00:03]} Rxe5 {[%emt 0:00:12] [#]} 37. b7 $1 {[%emt 0:00:43]} Rc7 {[%emt 0:05:24] Strongly threatening ...Rc1+.} (37... Rxb7 38. Nxb7) 38. Nc8+ {[%emt 0:01:13]} (38. b8=Q $142 Rc1+ 39. Kg2 Rg5+ 40. Kh3 Rh5+ 41. Kg3 Rg1+ 42. Kf4 Rh4+ 43. Ke3 Re1+ 44. Kd2) 38... Kf6 {[%emt 0:00:06]} 39. b8=Q {[%emt 0:00:28]} Rc1+ {[%emt 0:00:09]} 40. Kg2 {[%emt 0:00:04][%cal Ob8b2] Qb2! would kill now.} Rg5+ {[%emt 0:00:06]} 41. Kh3 {[%emt 0:05:37] Intending Qf4+ and mate.} Rcg1 {[%emt 0:06:43]} 42. Qf4+ {[%emt 0:01:25]} Rf5 {[%emt 0:00:06]} 43. Qd4+ {[%emt 0:00:06] Weighted Error Value: White=0.25 (precise) /Black=0.77} 1-0